fUST/lending_fUST_20250724
["ID","MTS","AMOUNT","RATE_DAILY","PERIOD"]
[374464830,1753311043223,-460.0,0.00019452,2]
[374464832,1753311043233,-460.0,0.00019452,2]
[374464834,1753311043242,-252.86439887,0.00019452,2]
[374464846,1753311043346,-460.0,0.00019452,2]
[374464848,1753311043367,-340.2620098,0.00019452,2]
[374464850,1753311043376,-460.0,0.00019452,2]
[374464852,1753311043385,-460.0,0.00019452,2]
[374464854,1753311043395,-460.0,0.00019452,2]
[374464856,1753311043404,-314.9923924,0.00019452,2]
[374464858,1753311043414,-460.0,0.00019452,2]
[374464860,1753311043424,-460.0,0.00019452,2]
[374464862,1753311043435,-491.11716418,0.00019452,2]
[374464864,1753311043444,-460.0,0.00019452,2]
[374464867,1753311043453,-460.0,0.00019452,2]
[374464869,1753311043463,-460.0,0.00019452,2]
[374464871,1753311043472,-460.0,0.00019452,2]
[374464872,1753311043483,-460.0,0.00019452,2]
[374464874,1753311043493,-460.0,0.00019452,2]
[374464876,1753311043502,-590.58,0.00019452,2]
[374464878,1753311043511,-460.0,0.00019452,2]
[374464880,1753311043521,-460.0,0.00019452,2]
[374464882,1753311043530,-413.32082297,0.00019452,2]
[374464884,1753311043540,-460.0,0.00019452,2]
[374464886,1753311043550,-460.0,0.00019452,2]
[374464888,1753311043559,-460.0,0.00019452,2]
[374464890,1753311043572,-586.43556117,0.00019452,2]
[374464892,1753311043581,-460.0,0.00019452,2]
[374464894,1753311043591,-460.0,0.00019452,2]
[374464896,1753311043600,-460.0,0.00019452,2]
[374464898,1753311043610,-460.0,0.00019452,2]
[374464900,1753311043620,-460.0,0.00019452,2]
[374464903,1753311043629,-460.0,0.00019452,2]
[374464906,1753311043639,-460.0,0.00019452,2]
[374464909,1753311043649,-460.0,0.00019452,2]
[374464912,1753311043658,-460.0,0.00019452,2]
[374464914,1753311043667,-378.93360085,0.00019452,2]
[374464916,1753311043676,-460.0,0.00019452,2]
[374464917,1753311043686,-460.0,0.00019452,2]
[374464919,1753311043695,-460.0,0.00019452,2]
[374464921,1753311043704,-460.0,0.00019452,2]
[374464923,1753311043714,-460.0,0.00019452,2]
[374464925,1753311043723,-517.32096307,0.00019452,2]
[374464927,1753311043732,-460.0,0.00019452,2]
[374464929,1753311043741,-460.0,0.00019452,2]
[374464931,1753311043750,-460.0,0.00019452,2]
[374464933,1753311043759,-580.80192371,0.00019452,2]
[374464935,1753311043768,-460.0,0.00019452,2]
[374464937,1753311043778,-460.0,0.00019452,2]
[374464939,1753311043787,-460.0,0.00019452,2]
[374464941,1753311043796,-460.0,0.00019452,2]
[374464943,1753311043805,-460.0,0.00019452,2]
[374464945,1753311043817,-460.0,0.00019452,2]
[374464947,1753311043827,-460.0,0.00019452,2]
[374464949,1753311043836,-460.0,0.00019452,2]
[374464951,1753311043845,-460.0,0.00019452,2]
[374464952,1753311043854,-1956.52,0.00019452,2]
[374464954,1753311043863,-460.0,0.00019452,2]
[374464956,1753311043872,-460.0,0.00019452,2]
[374464958,1753311043881,-460.0,0.00019452,2]
[374464960,1753311043890,-460.0,0.00019452,2]
[374464962,1753311043899,-460.0,0.00019452,2]
[374464964,1753311043909,-1590.15,0.00019452,2]
[374464966,1753311043918,-430.60370641,0.00019452,2]
[374464967,1753311043927,-460.0,0.00019452,2]
[374464969,1753311043936,-452.02443388,0.00019452,2]
[374464971,1753311043946,-460.0,0.00019452,2]
[374464973,1753311043955,-1087.76,0.00019452,2]
[374464975,1753311043965,-460.0,0.00019452,2]
[374464977,1753311043974,-591.79750991,0.00019452,2]
[374464979,1753311043983,-460.0,0.00019452,2]
[374464981,1753311043993,-460.0,0.00019452,2]
[374464983,1753311044013,-460.0,0.00019452,2]
[374464985,1753311044024,-460.0,0.00019452,2]
[374464987,1753311044034,-460.0,0.00019452,2]
[374464989,1753311044043,-199.97169175,0.00019452,2]
[374464991,1753311044053,-460.0,0.00019452,2]
[374464993,1753311044064,-460.0,0.00019452,2]
[374464995,1753311044074,-460.0,0.00019452,2]
[374464997,1753311044083,-463.25031618,0.00019452,2]
[374464999,1753311044093,-460.0,0.00019452,2]
[374465001,1753311044102,-460.0,0.00019452,2]
[374465003,1753311044111,-461.36,0.00019452,2]
[374465005,1753311044122,-460.0,0.00019452,2]
[374465007,1753311044131,-460.0,0.00019452,2]
[374465009,1753311044140,-460.0,0.00019452,2]
[374465011,1753311044149,-460.0,0.00019452,2]
[374465012,1753311044159,-460.0,0.00019452,2]
[374465014,1753311044168,-466.73183842,0.00019452,2]
[374465016,1753311044177,-460.0,0.00019452,2]
[374465018,1753311044186,-836.85,0.00019452,2]
[374465020,1753311044198,-460.0,0.00019452,2]
[374465022,1753311044207,-431.63689499,0.00019452,2]
[374465024,1753311044216,-574.45691817,0.00019452,2]
[374465026,1753311044225,-460.84,0.00019452,2]
[374465028,1753311044234,-460.0,0.00019452,2]
[374465030,1753311044243,-460.0,0.00019452,2]
[374465031,1753311044252,-460.0,0.00019452,2]
[374465033,1753311044262,-460.0,0.00019452,2]
[374465035,1753311044272,-460.0,0.00019452,2]
[374465037,1753311044281,-460.0,0.00019452,2]
[374465039,1753311044290,-601.6759021,0.00019452,2]
[374465041,1753311044299,-460.0,0.00019452,2]
[374465043,1753311044309,-479.3,0.00019452,2]
[374465045,1753311044320,-460.0,0.00019452,2]
[374465047,1753311044333,-460.0,0.00019452,2]
[374465049,1753311044342,-462.76559744,0.00019452,2]
[374465051,1753311044351,-460.0,0.00019452,2]
[374465053,1753311044361,-461.95446457,0.00019452,2]
[374465055,1753311044371,-460.0,0.00019452,2]
[374465057,1753311044380,-460.0,0.00019452,2]
[374465059,1753311044389,-460.0,0.00019452,2]
[374465061,1753311044399,-460.0,0.00019452,2]
[374465063,1753311044409,-460.0,0.00019452,2]
[374465065,1753311044418,-460.0,0.00019452,2]
[374465067,1753311044427,-460.0,0.00019452,2]
[374465069,1753311044438,-460.0,0.00019452,2]
[374465070,1753311044447,-424.94142798,0.00019452,2]
[374465072,1753311044457,-460.0,0.00019452,2]
[374465074,1753311044466,-460.0,0.00019452,2]
[374465076,1753311044475,-702.75,0.00019452,2]
[374465078,1753311044484,-460.0,0.00019452,2]
[374465080,1753311044494,-460.0,0.00019452,2]
[374465082,1753311044504,-460.0,0.00019452,2]
[374465084,1753311044513,-462.02190496,0.00019452,2]
[374465086,1753311044522,-460.0,0.00019452,2]
[374465088,1753311044533,-460.0,0.00019452,2]
[374465090,1753311044542,-460.0,0.00019452,2]
[374465092,1753311044552,-460.0,0.00019452,2]
[374465094,1753311044561,-460.0,0.00019452,2]
[374465096,1753311044572,-460.0,0.00019452,2]
[374465098,1753311044581,-460.0,0.00019452,2]
[374465100,1753311044590,-460.0,0.00019452,2]
[374465102,1753311044599,-591.4,0.00019452,2]
[374465104,1753311044609,-460.0,0.00019452,2]
[374465106,1753311044618,-460.0,0.00019452,2]
[374465108,1753311044627,-460.0,0.00019452,2]
[374465110,1753311044636,-460.0,0.00019452,2]
[374465111,1753311044646,-460.0,0.00019452,2]
[374465113,1753311044655,-460.0,0.00019452,2]
[374465115,1753311044664,-460.0,0.00019452,2]
[374465117,1753311044674,-460.0,0.00019452,2]
[374465119,1753311044683,-460.0,0.00019452,2]
[374465121,1753311044693,-460.0,0.00019452,2]
[374465123,1753311044702,-460.0,0.00019452,2]
[374465125,1753311044712,-460.0,0.00019452,2]
[374465127,1753311044722,-465.19038475,0.00019452,2]
[374465129,1753311044732,-460.0,0.00019452,2]
[374465131,1753311044741,-985.94,0.00019452,2]
[374465133,1753311044750,-615.42,0.00019452,2]
[374465134,1753311044759,-699.1,0.00019452,2]
[374465136,1753311044770,-460.0,0.00019452,2]
[374465138,1753311044779,-460.0,0.00019452,2]
[374465140,1753311044788,-460.0,0.00019452,2]
[374465142,1753311044797,-460.0,0.00019452,2]
[374465144,1753311044807,-460.0,0.00019452,2]
[374465146,1753311044818,-460.0,0.00019452,2]
[374465148,1753311044827,-460.0,0.00019452,2]
[374465150,1753311044836,-460.0,0.00019452,2]
[374465151,1753311044846,-460.0,0.00019452,2]
[374465153,1753311044855,-460.0,0.00019452,2]
[374465155,1753311044864,-460.0,0.00019452,2]
[374465157,1753311044874,-460.0,0.00019452,2]
[374465159,1753311044883,-460.0,0.00019452,2]
[374465161,1753311044892,-460.0,0.00019452,2]
[374465163,1753311044901,-460.0,0.00019452,2]
[374465165,1753311044910,-460.0,0.00019452,2]
[374465167,1753311044920,-604.64,0.00019452,2]
[374465169,1753311044929,-460.0,0.00019452,2]
[374465171,1753311044937,-460.0,0.00019452,2]
[374465173,1753311044947,-573.41698392,0.00019452,2]
[374465175,1753311044956,-460.0,0.00019452,2]
[374465177,1753311044966,-216.01658458,0.00019452,2]
[374465179,1753311044975,-460.0,0.00019452,2]
[374465181,1753311044985,-460.0,0.00019452,2]
[374465183,1753311044994,-460.0,0.00019452,2]
[374465184,1753311045003,-460.0,0.00019452,2]
[374465186,1753311045012,-1060.3256651,0.00019721,2]
[374465188,1753311045022,-1000.0,0.00019721,2]
[374465190,1753311045031,-1000.0,0.00019721,2]
[374465192,1753311045040,-1000.0,0.00019721,2]
[374465194,1753311045049,-1000.0,0.00019721,2]
[374465196,1753311045059,-460.0,0.00019726,2]
[374465198,1753311045072,-164.77970811,0.00019726,2]
[374465200,1753311045082,-460.0,0.00019726,2]
[374465202,1753311045091,-460.0,0.00019726,2]
[374465204,1753311045100,-460.0,0.00019726,2]
[374465206,1753311045108,-460.0,0.00019726,2]
[374465208,1753311045117,-460.0,0.00019726,2]
[374465210,1753311045127,-460.0,0.00019726,2]
[374465212,1753311045136,-460.0,0.00019726,2]
[374465214,1753311045146,-460.0,0.00019726,2]
[374465216,1753311045156,-460.0,0.00019726,2]
[374465218,1753311045166,-460.0,0.00019726,2]
[374465220,1753311045174,-460.0,0.00019726,2]
[374465221,1753311045185,-460.0,0.00019726,2]
[374465223,1753311045194,-460.0,0.00019726,2]
[374465225,1753311045203,-460.0,0.00019726,2]
[374465227,1753311045212,-460.0,0.00019726,2]
[374465229,1753311045222,-460.0,0.00019726,2]
[374465231,1753311045232,-460.0,0.00019726,2]
[374465233,1753311045241,-203.52949707,0.00019726,2]
[374465235,1753311045250,-460.0,0.00019726,2]
[374465237,1753311045259,-460.0,0.00019726,2]
[374465239,1753311045268,-460.0,0.00019726,2]
[374465241,1753311045277,-460.0,0.00019726,2]
[374465243,1753311045286,-460.0,0.00019726,2]
[374465244,1753311045295,-460.0,0.00019726,2]
[374465246,1753311045305,-460.0,0.00019726,2]
[374465248,1753311045316,-1956.52,0.00019726,2]
[374465250,1753311045326,-460.0,0.00019726,2]
[374465252,1753311045337,-460.0,0.00019726,2]
[374465255,1753311045346,-1590.15,0.00019726,2]
[374465258,1753311045355,-460.0,0.00019726,2]
[374465260,1753311045365,-460.0,0.00019726,2]
[374465262,1753311045374,-1087.76,0.00019726,2]
[374465265,1753311045383,-460.0,0.00019726,2]
[374465267,1753311045392,-460.0,0.00019726,2]
[374465269,1753311045402,-460.0,0.00019726,2]
[374465271,1753311045412,-598.86,0.00019726,2]
[374465273,1753311045422,-460.0,0.00019726,2]
[374465275,1753311045431,-460.0,0.00019726,2]
[374465277,1753311045439,-460.0,0.00019726,2]
[374465279,1753311045449,-460.0,0.00019726,2]
[374465281,1753311045458,-460.0,0.00019726,2]
[374465282,1753311045467,-836.85,0.00019726,2]
[374465284,1753311045476,-460.0,0.00019726,2]
[374465286,1753311045485,-460.0,0.00019726,2]
[374465288,1753311045494,-460.0,0.00019726,2]
[374465290,1753311045503,-479.3,0.00019726,2]
[374465292,1753311045512,-460.0,0.00019726,2]
[374465294,1753311045521,-460.0,0.00019726,2]
[374465296,1753311045530,-460.0,0.00019726,2]
[374465298,1753311045539,-460.0,0.00019726,2]
[374465300,1753311045549,-460.0,0.00019726,2]
[374465302,1753311045558,-460.0,0.00019726,2]
[374465304,1753311045569,-460.0,0.00019726,2]
[374465306,1753311045578,-245.48,0.00019726,2]
[374465308,1753311045586,-702.75,0.00019726,2]
[374465310,1753311045595,-460.0,0.00019726,2]
[374465311,1753311045604,-460.0,0.00019726,2]
[374465313,1753311045614,-460.0,0.00019726,2]
[374465315,1753311045623,-460.0,0.00019726,2]
[374465317,1753311045632,-460.0,0.00019726,2]
[374465319,1753311045642,-591.4,0.00019726,2]
[374465321,1753311045651,-460.0,0.00019726,2]
[374465323,1753311045660,-262.64120775,0.00019726,2]
[374465325,1753311045669,-460.0,0.00019726,2]
[374465327,1753311045679,-460.0,0.00019726,2]
[374465329,1753311045688,-244.52,0.00019726,2]
[374465331,1753311045697,-460.0,0.00019726,2]
[374465333,1753311045706,-460.0,0.00019726,2]
[374465335,1753311045715,-460.0,0.00019726,2]
[374465337,1753311045724,-460.0,0.00019726,2]
[374465339,1753311045733,-460.0,0.00019726,2]
[374465341,1753311045742,-460.0,0.00019726,2]
[374465343,1753311045751,-985.94,0.00019726,2]
[374465344,1753311045761,-615.42,0.00019726,2]
[374465346,1753311045770,-460.0,0.00019726,2]
[374465348,1753311045779,-699.1,0.00019726,2]
[374465350,1753311045788,-460.0,0.00019726,2]
[374465352,1753311045797,-460.0,0.00019726,2]
[374465354,1753311045807,-460.0,0.00019726,2]
[374465356,1753311045816,-460.0,0.00019726,2]
[374465358,1753311045825,-460.0,0.00019726,2]
[374465360,1753311045835,-460.0,0.00019726,2]
[374465362,1753311045844,-460.0,0.00019726,2]
[374465364,1753311045853,-460.0,0.00019726,2]
[374465366,1753311045862,-460.0,0.00019726,2]
[374465367,1753311045873,-460.0,0.00019726,2]
[374465369,1753311045882,-460.0,0.00019726,2]
[374465371,1753311045891,-460.0,0.00019726,2]
[374465373,1753311045901,-460.0,0.00019726,2]
[374465375,1753311045911,-460.0,0.00019726,2]
[374465377,1753311045920,-460.0,0.00019726,2]
[374465379,1753311045929,-150.0,0.00019811,2]
[374465381,1753311045938,-186.93551265,0.00019988,2]
[374465392,1753311046046,-74697.0,0.0002,2]
[374465395,1753311046056,-460.0,0.0002,2]
[374465397,1753311046065,-460.0,0.0002,2]
[374465399,1753311046074,-460.0,0.0002,2]
[374465401,1753311046084,-235.32,0.0002,2]
[374465403,1753311046093,-307.55918788,0.0002,2]
[374465405,1753311046102,-448.17626687,0.0002,2]
[374465407,1753311046111,-460.0,0.0002,2]
[374465409,1753311046120,-1956.52,0.0002,2]
[374465411,1753311046130,-1590.15,0.0002,2]
[374465413,1753311046139,-491.61,0.0002,2]
[374465415,1753311046148,-1087.76,0.0002,2]
[374465417,1753311046157,-460.0,0.0002,2]
[374465419,1753311046166,-460.0,0.0002,2]
[374465421,1753311046175,-460.0,0.0002,2]
[374465423,1753311046185,-460.0,0.0002,2]
[374465425,1753311046194,-836.85,0.0002,2]
[374465426,1753311046203,-290.21,0.0002,2]
[374465428,1753311046212,-479.3,0.0002,2]
[374465430,1753311046221,-460.0,0.0002,2]
[374465432,1753311046230,-358.51447499,0.0002,2]
[374465434,1753311046239,-460.0,0.0002,2]
[374465436,1753311046248,-702.75,0.0002,2]
[374465438,1753311046258,-460.0,0.0002,2]
[374465440,1753311046268,-460.0,0.0002,2]
[374465442,1753311046277,-460.0,0.0002,2]
[374465444,1753311046286,-591.4,0.0002,2]
[374465446,1753311046296,-460.0,0.0002,2]
[374465448,1753311046305,-185.16,0.0002,2]
[374465450,1753311046315,-206.76,0.0002,2]
[374465452,1753311046326,-460.0,0.0002,2]
[374465454,1753311046339,-985.94,0.0002,2]
[374465456,1753311046348,-615.42,0.0002,2]
[374465458,1753311046357,-699.1,0.0002,2]
[374465460,1753311046366,-460.0,0.0002,2]
[374465461,1753311046376,-460.0,0.0002,2]
[374465464,1753311046386,-460.0,0.0002,2]
[374465465,1753311046395,-460.0,0.0002,2]
[374465467,1753311046404,-460.0,0.0002,2]
[374465468,1753311046413,-460.0,0.0002,2]
[374465470,1753311046423,-460.0,0.0002,2]
[374465472,1753311046432,-230.136597,0.00020187,2]
[374465474,1753311046441,-500.0,0.00020268,2]
[374465476,1753311046451,-460.0,0.00020273,2]
[374465478,1753311046460,-460.0,0.00020273,2]
[374465480,1753311046470,-460.0,0.00020273,2]
[374465482,1753311046479,-460.0,0.00020273,2]
[374465484,1753311046489,-1956.52,0.00020273,2]
[374465486,1753311046499,-1590.15,0.00020273,2]
[374465488,1753311046508,-1087.76,0.00020273,2]
[374465490,1753311046518,-460.0,0.00020273,2]
[374465492,1753311046527,-460.0,0.00020273,2]
[374465494,1753311046536,-460.0,0.00020273,2]
[374465496,1753311046545,-836.85,0.00020273,2]
[374465498,1753311046554,-479.3,0.00020273,2]
[374465500,1753311046564,-460.0,0.00020273,2]
[374465502,1753311046573,-460.0,0.00020273,2]
[374465504,1753311046583,-702.75,0.00020273,2]
[374465505,1753311046592,-460.0,0.00020273,2]
[374465507,1753311046602,-460.0,0.00020273,2]
[374465509,1753311046611,-460.0,0.00020273,2]
[374465511,1753311046620,-591.4,0.00020273,2]
[374465513,1753311046630,-460.0,0.00020273,2]
[374465515,1753311046639,-460.0,0.00020273,2]
[374465517,1753311046648,-985.94,0.00020273,2]
[374465519,1753311046658,-615.42,0.00020273,2]
[374465521,1753311046667,-699.1,0.00020273,2]
[374465523,1753311046677,-460.0,0.00020273,2]
[374465525,1753311046686,-460.0,0.00020273,2]
[374465527,1753311046695,-460.0,0.00020273,2]
[374465529,1753311046704,-460.0,0.00020273,2]
[374465531,1753311046714,-460.0,0.00020273,2]
[374465533,1753311046723,-460.0,0.00020273,2]
[374465535,1753311046731,-460.0,0.00020273,2]
[374465536,1753311046740,-191.8,0.00020364,2]
[374465538,1753311046749,-160.0,0.00020487,2]
[374465540,1753311046759,-160.0,0.00020487,2]
[374465542,1753311046768,-160.0,0.00020487,2]
[374465544,1753311046777,-231.11583447,0.00020491,2]
[374465546,1753311046786,-160.0,0.00020491,2]
[374465548,1753311046796,-215.84326551,0.00020491,2]
[374465550,1753311046805,-840.06856235,0.00020491,2]
[374465552,1753311046815,-160.0,0.00020491,2]
[374465554,1753311046824,-1403.47370104,0.00020506,2]
[374465555,1753311046833,-458.24,0.00020538,3]
[374465557,1753311046842,-3225.26,0.00020538,3]
[374465559,1753311046851,-1612.62,0.00020538,3]
[374465561,1753311046860,-806.32,0.00020538,3]
[374465563,1753311046870,-403.16,0.00020538,3]
[374465565,1753311046879,-460.0,0.00020547,2]
[374465567,1753311046889,-437.92,0.00020547,2]
[374465569,1753311046898,-290.32,0.00020547,2]
[374465571,1753311046908,-1956.52,0.00020547,2]
[374465573,1753311046917,-1590.15,0.00020547,2]
[374465575,1753311046926,-1087.76,0.00020547,2]
[374465577,1753311046935,-460.0,0.00020547,2]
[374465579,1753311046944,-460.0,0.00020547,2]
[374465581,1753311046954,-460.0,0.00020547,2]
[374465583,1753311046964,-836.85,0.00020547,2]
[374465584,1753311046973,-479.3,0.00020547,2]
[374465586,1753311046982,-460.0,0.00020547,2]
[374465588,1753311046991,-460.0,0.00020547,2]
[374465590,1753311047000,-702.75,0.00020547,2]
[374465592,1753311047009,-460.0,0.00020547,2]
[374465594,1753311047019,-460.0,0.00020547,2]
[374465596,1753311047028,-460.0,0.00020547,2]
[374465598,1753311047037,-591.4,0.00020547,2]
[374465599,1753311047047,-432.04,0.00020547,2]
[374465601,1753311047056,-460.0,0.00020547,2]
[374465603,1753311047067,-985.94,0.00020547,2]
[374465605,1753311047076,-615.42,0.00020547,2]
[374465607,1753311047085,-699.1,0.00020547,2]
[374465609,1753311047094,-474.90246789,0.00020547,2]
[374465611,1753311047103,-460.0,0.00020547,2]
[374465613,1753311047112,-460.0,0.00020547,2]
[374465614,1753311047121,-460.0,0.00020547,2]
[374465616,1753311047132,-460.0,0.00020547,2]
[374465618,1753311047142,-460.0,0.00020547,2]
[374465620,1753311047152,-315.759,0.00020749,2]
[374465622,1753311047161,-150.0,0.00020755,2]
[374465624,1753311047170,-314.56,0.00020821,2]
[374465626,1753311047180,-1956.52,0.00020821,2]
[374465627,1753311047189,-1590.15,0.00020821,2]
[374465629,1753311047198,-1087.76,0.00020821,2]
[374465631,1753311047209,-460.0,0.00020821,2]
[374465633,1753311047219,-460.0,0.00020821,2]
[374465635,1753311047228,-460.0,0.00020821,2]
[374465636,1753311047238,-836.85,0.00020821,2]
[374465638,1753311047247,-479.3,0.00020821,2]
[374465640,1753311047257,-460.0,0.00020821,2]
[374465642,1753311047266,-460.0,0.00020821,2]
[374465644,1753311047275,-702.75,0.00020821,2]
[374465645,1753311047284,-460.0,0.00020821,2]
[374465647,1753311047293,-346.32,0.00020821,2]
[374465649,1753311047302,-460.0,0.00020821,2]
[374465651,1753311047312,-591.4,0.00020821,2]
[374465653,1753311047324,-544.71699781,0.00020821,2]
[374465655,1753311047337,-985.94,0.00020821,2]
[374465657,1753311047347,-615.42,0.00020821,2]
[374465659,1753311047355,-699.1,0.00020821,2]
[374465661,1753311047365,-460.0,0.00020821,2]
[374465662,1753311047375,-460.0,0.00020821,2]
[374465664,1753311047384,-460.0,0.00020821,2]
[374465666,1753311047393,-460.0,0.00020821,2]
[374465668,1753311047403,-460.0,0.00020821,2]
[374465670,1753311047412,-160.0,0.00020836,2]
[374465672,1753311047421,-151.0,0.00021,2]
[374465674,1753311047430,-151.0,0.00021,2]
[374465676,1753311047439,-757.45257,0.00021,2]
[374465677,1753311047448,-757.45257,0.00021,2]
[374465679,1753311047457,-151.0,0.00021,2]
[374465681,1753311047466,-151.0,0.00021,2]
[374465683,1753311047475,-151.0,0.00021,2]
[374465685,1753311047484,-151.0,0.00021,2]
[374465687,1753311047493,-151.0,0.00021,2]
[374465688,1753311047502,-151.0,0.00021,2]
[374465690,1753311047512,-151.0,0.00021,2]
[374465692,1753311047521,-318.357995,0.00021,2]
[374465694,1753311047530,-318.357995,0.00021,2]
[374465696,1753311047539,-1956.52,0.00021095,2]
[374465698,1753311047548,-1590.15,0.00021095,2]
[374465700,1753311047557,-1087.76,0.00021095,2]
[374465701,1753311047568,-460.0,0.00021095,2]
[374465703,1753311047577,-460.0,0.00021095,2]
[374465705,1753311047587,-836.85,0.00021095,2]
[374465707,1753311047595,-479.3,0.00021095,2]
[374465709,1753311047604,-214.92,0.00021095,2]
[374465711,1753311047613,-460.0,0.00021095,2]
[374465712,1753311047622,-702.75,0.00021095,2]
[374465714,1753311047631,-407.43416998,0.00021095,2]
[374465716,1753311047641,-460.0,0.00021095,2]
[374465718,1753311047649,-591.4,0.00021095,2]
[374465720,1753311047659,-985.94,0.00021095,2]
[374465722,1753311047668,-615.42,0.00021095,2]
[374465724,1753311047678,-699.1,0.00021095,2]
[374465725,1753311047687,-460.0,0.00021095,2]
[374465727,1753311047696,-460.0,0.00021095,2]
[374465729,1753311047705,-460.0,0.00021095,2]
[374465731,1753311047715,-460.0,0.00021095,2]
[374465733,1753311047724,-1956.52,0.00021369,2]
[374465735,1753311047734,-1590.15,0.00021369,2]
[374465737,1753311047743,-1087.76,0.00021369,2]
[374465739,1753311047752,-460.0,0.00021369,2]
[374465740,1753311047761,-460.0,0.00021369,2]
[374465742,1753311047770,-836.85,0.00021369,2]
[374465744,1753311047780,-479.3,0.00021369,2]
[374465746,1753311047789,-460.0,0.00021369,2]
[374465748,1753311047798,-702.75,0.00021369,2]
[374465750,1753311047807,-460.0,0.00021369,2]
[374465751,1753311047817,-591.4,0.00021369,2]
[374465753,1753311047827,-985.94,0.00021369,2]
[374465755,1753311047837,-615.42,0.00021369,2]
[374465757,1753311047846,-699.1,0.00021369,2]
[374465759,1753311047856,-460.0,0.00021369,2]
[374465761,1753311047865,-250.97,0.00021369,2]
[374465763,1753311047874,-460.0,0.00021369,2]
[374465765,1753311047884,-460.0,0.00021369,2]
[374465767,1753311047893,-260.0,0.00021384,2]
[374465768,1753311047903,-500.0,0.00021427,2]
[374465770,1753311047912,-500.0,0.00021442,2]
[374465772,1753311047921,-2240.48,0.00021442,3]
[374465774,1753311047930,-500.0,0.0002145,2]
[374465776,1753311047939,-500.0,0.0002145,2]
[374465778,1753311047948,-274.2,0.00021457,5]
[374465780,1753311047957,-500.0,0.0002152,2]
[374465782,1753311047966,-500.0,0.00021542,2]
[374465783,1753311047975,-500.0,0.00021542,2]
[374465785,1753311047984,-500.0,0.00021542,2]
[374465787,1753311047994,-500.0,0.00021542,2]
[374465789,1753311048002,-500.55403074,0.00021542,2]
[374465791,1753311048011,-501.4575332,0.00021542,2]
[374465793,1753311048021,-500.0,0.0002155,2]
[374465795,1753311048030,-500.0,0.0002155,2]
[374465796,1753311048039,-500.0,0.0002155,2]
[374465798,1753311048048,-350.0,0.0002155,2]
[374465800,1753311048057,-500.0,0.0002155,2]
[374465802,1753311048067,-500.0,0.00021585,2]
[374465804,1753311048077,-619.07791208,0.00021585,2]
[374465806,1753311048086,-500.0,0.00021585,2]
[374465808,1753311048095,-500.0,0.00021585,2]
[374465809,1753311048104,-500.0,0.00021585,2]
[374465811,1753311048114,-504.74859818,0.00021585,2]
[374465813,1753311048123,-500.0,0.00021586,2]
[374465815,1753311048132,-500.0,0.00021586,2]